[Event "Sunway Sitges Chess Festival"]
[Date "2024.12.21"]
[White "Makkar, Rajat"]
[Black "Lopez Garcia, Miguel Angel"]
[WhiteElo "2433"]
[BlackElo "2127"]
[Round "7.35"]
[Result "1/2-1/2"]
[TimeControl "40/5400+30:1800+30"]

1. d4 {[%clk 1:25:01]} 1... Nf6 {[%clk 1:30:33]} 2. Nf3 {[%clk 1:25:17]} 2... d5
{[%clk 1:30:57]} 3. c4 {[%clk 1:24:54]} 3... dxc4 {[%clk 1:31:21]} 4. e3 {[%clk
1:25:33]} 4... e6 {[%clk 1:31:38]} 5. Bxc4 {[%clk 1:25:57]} 5... c5 {[%clk
1:32:03]} 6. O-O {[%clk 1:26:12]} 6... a6 {[%clk 1:32:28]} 7. Nbd2 {[%clk
1:26:38]} 7... b5 {[%clk 1:25:15]} 8. Be2 {[%clk 1:25:12]} 8... Nbd7 {[%clk
1:23:00]} 9. a4 {[%clk 1:24:51]} 9... Rb8 {[%clk 1:20:01]} 10. axb5 {[%clk
1:21:55]} 10... axb5 {[%clk 1:20:22]} 11. e4 {[%clk 1:22:12]} 11... c4 {[%clk
1:10:49]} 12. Qc2 {[%clk 1:10:09]} 12... Bb7 {[%clk 1:08:02]} 13. b3 {[%clk
1:07:10]} 13... cxb3 {[%clk 1:00:49]} 14. Qb1 {[%clk 1:07:13]} 14... Qb6 {[%clk
0:55:41]} 15. Bd3 {[%clk 1:05:27]} 15... Bb4 {[%clk 0:43:19]} 16. Bb2 {[%clk
0:57:41]} 16... h6 {[%clk 0:41:12]} 17. Nxb3 {[%clk 0:56:55]} 17... O-O {[%clk
0:40:13]} 18. d5 {[%clk 0:49:36]} 18... exd5 {[%clk 0:38:03]} 19. e5 {[%clk
0:49:54]} 19... Ne4 {[%clk 0:36:56]} 20. Nbd4 {[%clk 0:50:16]} 20... Ndc5 {[%clk
0:31:05]} 21. Bc2 {[%clk 0:46:53]} 21... Ne6 {[%clk 0:30:04]} 22. Qc1 {[%clk
0:43:27]} 22... Nc3 {[%clk 0:25:47]} 23. Bxc3 {[%clk 0:42:14]} 23... Bxc3 {[%clk
0:25:51]} 24. Bh7+ {[%clk 0:42:38]} 24... Kxh7 {[%clk 0:26:07]} 25. Qxc3 {[%clk
0:43:05]} 25... b4 {[%clk 0:25:06]} 26. Qd3+ {[%clk 0:43:27]} 26... Kg8 {[%clk
0:24:56]} 27. Rfd1 {[%clk 0:39:44]} 27... Nc5 {[%clk 0:20:53]} 28. Qe3 {[%clk
0:37:59]} 28... Bc8 {[%clk 0:21:14]} 29. Nh4 {[%clk 0:35:09]} 29... Ne4 {[%clk
0:20:26]} 30. Rd3 {[%clk 0:30:06]} 30... Ba6 {[%clk 0:19:18]} 31. Rb3 {[%clk
0:30:10]} 31... Bc4 {[%clk 0:16:01]} 32. Rb2 {[%clk 0:29:31]} 32... Rfe8 {[%clk
0:12:07]} 33. f4 {[%clk 0:25:01]} 33... b3 {[%clk 0:12:01]} 34. Rab1 {[%clk
0:24:21]} 34... Nc5 {[%clk 0:10:30]} 35. Nhf5 {[%clk 0:22:13]} 35... Qg6 {[%clk
0:10:21]} 36. Rd2 {[%clk 0:20:40]} 36... Ne4 {[%clk 0:09:52]} 37. Rdb2 {[%clk
0:20:43]} 37... Nc5 {[%clk 0:09:59]} 38. Rd2 {[%clk 0:20:42]} 38... Ne4 {[%clk
0:10:09]} 39. Rdb2 {[%clk 0:20:48]} 39... Nc5 {[%clk 0:10:25]} 1/2-1/2

[Variant "Standard"]
[Site "Europe Echecs"]

[Event "Sunway Sitges Chess Festival"]
[Date "2024.12.21"]
[White "Patel, Zain"]
[Black "Dhruva Thota"]
[WhiteElo "2099"]
[BlackElo "2351"]
[Round "7.36"]
[Result "1-0"]
[TimeControl "40/5400+30:1800+30"]

1. Nf3 {[%clk 1:28:31]} 1... Nf6 {[%clk 1:30:14]} 2. g3 {[%clk 1:25:46]} 2... g6
{[%clk 1:30:23]} 3. b3 {[%clk 1:25:37]} 3... Bg7 {[%clk 1:22:16]} 4. Bb2 {[%clk
1:25:43]} 4... O-O {[%clk 1:22:07]} 5. Bg2 {[%clk 1:26:05]} 5... c5 {[%clk
1:20:52]} 6. c4 {[%clk 1:24:18]} 6... d6 {[%clk 1:19:43]} 7. O-O {[%clk
1:22:23]} 7... e5 {[%clk 1:14:26]} 8. Nc3 {[%clk 1:18:35]} 8... Nc6 {[%clk
1:11:39]} 9. d3 {[%clk 1:14:23]} 9... h6 {[%clk 1:11:24]} 10. Nd2 {[%clk
1:13:21]} 10... Be6 {[%clk 1:09:57]} 11. Nde4 {[%clk 1:10:14]} 11... Ne8 {[%clk
1:09:42]} 12. Nd5 {[%clk 1:08:12]} 12... Qd7 {[%clk 1:04:09]} 13. Qd2 {[%clk
1:01:38]} 13... Rb8 {[%clk 0:54:49]} 14. Nec3 {[%clk 0:58:14]} 14... f5 {[%clk
0:51:34]} 15. e3 {[%clk 0:51:37]} 15... Nf6 {[%clk 0:43:36]} 16. f4 {[%clk
0:49:09]} 16... Rbe8 {[%clk 0:38:38]} 17. Rae1 {[%clk 0:46:02]} 17... Kh7 {[%clk
0:36:59]} 18. Nb5 {[%clk 0:35:21]} 18... Bg8 {[%clk 0:21:33]} 19. d4 {[%clk
0:32:37]} 19... exd4 {[%clk 0:18:27]} 20. exd4 {[%clk 0:32:07]} 20... Nxd5
{[%clk 0:15:40]} 21. cxd5 {[%clk 0:31:32]} 21... Nb4 {[%clk 0:14:45]} 22. Na3
{[%clk 0:30:18]} 22... Bxd5 {[%clk 0:11:41]} 23. Bxd5 {[%clk 0:29:35]} 23...
Nxd5 {[%clk 0:11:45]} 24. dxc5 {[%clk 0:29:16]} 24... Bxb2 {[%clk 0:11:03]} 25.
Qxb2 {[%clk 0:29:21]} 25... dxc5 {[%clk 0:09:41]} 26. Nc4 {[%clk 0:28:43]} 26...
Rxe1 {[%clk 0:07:17]} 27. Rxe1 {[%clk 0:29:05]} 27... Re8 {[%clk 0:07:06]} 28.
Rd1 {[%clk 0:26:59]} 28... Re4 {[%clk 0:06:20]} 29. Ne5 {[%clk 0:26:10]} 29...
Qe6 {[%clk 0:05:20]} 30. Qa3 {[%clk 0:25:50]} 30... Rb4 {[%clk 0:02:43]} 31.
Qxa7 {[%clk 0:25:47]} 31... Qd6 {[%clk 0:01:38]} 32. Qa8 {[%clk 0:25:16]} 32...
c4 {[%clk 0:00:50]} 33. Qe8 {[%clk 0:23:55]} 33... Qb6+ {[%clk 0:00:40]} 34. Kh1
{[%clk 0:24:13]} 1-0

[Variant "Standard"]
[Site "Europe Echecs"]

[Event "Sunway Sitges Chess Festival"]
[Date "2024.12.21"]
[White "Yonemitsu, Kohei"]
[Black "Patrascu, Catalin-Lucian"]
[WhiteElo "2076"]
[BlackElo "2299"]
[Round "7.37"]
[Result "0-1"]
[TimeControl "40/5400+30:1800+30"]

1. e4 {[%clk 1:30:56]} 1... c5 {[%clk 1:30:58]} 2. Nf3 {[%clk 1:31:10]} 2... e6
{[%clk 1:31:22]} 3. c3 {[%clk 1:31:04]} 3... Nf6 {[%clk 1:31:48]} 4. e5 {[%clk
1:32:00]} 4... Nd5 {[%clk 1:31:42]} 5. d4 {[%clk 1:32:22]} 5... cxd4 {[%clk
1:32:43]} 6. cxd4 {[%clk 1:32:43]} 6... b6 {[%clk 1:31:24]} 7. Nc3 {[%clk
1:31:42]} 7... Nxc3 {[%clk 1:33:27]} 8. bxc3 {[%clk 1:32:07]} 8... Qc7 {[%clk
1:33:56]} 9. Bd2 {[%clk 1:31:44]} 9... d6 {[%clk 1:34:09]} 10. Bd3 {[%clk
1:31:57]} 10... Nd7 {[%clk 1:27:50]} 11. Qe2 {[%clk 1:26:18]} 11... Bb7 {[%clk
1:26:50]} 12. O-O {[%clk 1:19:37]} 12... dxe5 {[%clk 1:26:58]} 13. Nxe5 {[%clk
1:25:39]} 13... Nxe5 {[%clk 1:27:09]} 14. dxe5 {[%clk 1:23:43]} 14... Bc5 {[%clk
1:14:34]} 15. Rfe1 {[%clk 1:12:35]} 15... O-O {[%clk 1:12:41]} 16. Qg4 {[%clk
1:10:11]} 16... Rfd8 {[%clk 1:10:33]} 17. Bh6 {[%clk 1:06:11]} 17... f5 {[%clk
0:44:33]} 18. exf6 {[%clk 1:04:01]} 18... Rxd3 {[%clk 0:48:18]} 19. Bxg7 {[%clk
0:34:09]} 19... Rd7 {[%clk 0:40:31]} 20. Rad1 {[%clk 0:53:41]} 20... Rxg7 {[%clk
0:16:34]} 21. fxg7 {[%clk 0:46:20]} 21... Bd5 {[%clk 0:12:02]} 22. Qg5 {[%clk
0:49:27]} 22... Qf7 {[%clk 0:07:30]} 23. Re2 {[%clk 0:48:51]} 23... Qg6 {[%clk
0:05:44]} 24. Qxg6 {[%clk 0:47:19]} 24... hxg6 {[%clk 0:04:41]} 25. Rc2 {[%clk
0:46:19]} 25... b5 {[%clk 0:04:33]} 26. Kf1 {[%clk 0:46:05]} 26... Kxg7 {[%clk
0:04:45]} 27. Rcd2 {[%clk 0:44:06]} 27... Rf8 {[%clk 0:03:31]} 28. f3 {[%clk
0:43:03]} 28... Rf4 {[%clk 0:03:08]} 29. Ke1 {[%clk 0:45:20]} 29... Rc4 {[%clk
0:03:10]} 30. Rd3 {[%clk 0:44:20]} 30... Bb6 {[%clk 0:02:44]} 31. Rb1 {[%clk
0:44:44]} 31... a6 {[%clk 0:00:-28]} 32. Rb2 {[%clk 0:44:29]} 32... Ra4 {[%clk
0:00:-56]} 33. Kd1 {[%clk 0:43:10]} 33... Kf6 {[%clk 0:-2:00]} 34. Rbd2 {[%clk
0:42:17]} 34... Bxa2 {[%clk 0:-2:-37]} 35. Rd6 {[%clk 0:41:45]} 35... Be3 {[%clk
0:-3:-28]} 36. Rb2 {[%clk 0:41:22]} 36... Bc4 {[%clk 0:-3:-44]} 37. Kc2 {[%clk
0:41:01]} 37... Bf4 {[%clk 0:02:14]} 38. Rd8 {[%clk 0:40:30]} 38... Bxh2 {[%clk
0:00:43]} 39. Rf8+ {[%clk 0:40:11]} 39... Kg7 {[%clk 0:02:43]} 40. Ra8 {[%clk
1:09:42]} 40... Be5 {[%clk 0:32:51]} 0-1

[Variant "Standard"]
[Site "Europe Echecs"]

[Event "Sunway Sitges Chess Festival"]
[Date "2024.12.21"]
[White "Luk, Danbe"]
[Black "Hu, Jiani"]
[WhiteElo "1893"]
[BlackElo "2101"]
[Round "7.38"]
[Result "0-1"]
[TimeControl "40/5400+30:1800+30"]

1. d4 {[%clk 1:30:55]} 1... f5 {[%clk 1:30:22]} 2. Bf4 {[%clk 1:30:58]} 2... Nf6
{[%clk 1:30:42]} 3. e3 {[%clk 1:30:46]} 3... d6 {[%clk 1:30:55]} 4. Nf3 {[%clk
1:30:07]} 4... g6 {[%clk 1:30:54]} 5. c4 {[%clk 1:28:54]} 5... Bg7 {[%clk
1:31:05]} 6. Nc3 {[%clk 1:26:01]} 6... O-O {[%clk 1:31:10]} 7. c5 {[%clk
1:21:21]} 7... c6 {[%clk 1:17:07]} 8. Bc4+ {[%clk 1:15:33]} 8... d5 {[%clk
1:16:05]} 9. Be2 {[%clk 1:15:59]} 9... Nbd7 {[%clk 1:14:54]} 10. Ng5 {[%clk
1:07:57]} 10... Nb8 {[%clk 1:14:58]} 11. Nf3 {[%clk 1:07:42]} 11... h6 {[%clk
1:11:28]} 12. h3 {[%clk 1:01:00]} 12... Nbd7 {[%clk 1:09:39]} 13. b4 {[%clk
0:58:39]} 13... Ne4 {[%clk 1:09:17]} 14. Qc2 {[%clk 0:58:16]} 14... a5 {[%clk
1:07:58]} 15. b5 {[%clk 0:53:41]} 15... g5 {[%clk 0:53:43]} 16. bxc6 {[%clk
0:50:11]} 16... bxc6 {[%clk 0:53:39]} 17. Bh2 {[%clk 0:49:28]} 17... Qe8 {[%clk
0:33:18]} 18. Nxe4 {[%clk 0:40:29]} 18... fxe4 {[%clk 0:33:38]} 19. Ne5 {[%clk
0:40:24]} 19... Nxe5 {[%clk 0:32:28]} 20. Bxe5 {[%clk 0:40:40]} 20... Bxe5
{[%clk 0:31:08]} 21. dxe5 {[%clk 0:41:05]} 21... Qg6 {[%clk 0:30:22]} 22. g4
{[%clk 0:32:23]} 22... Qf7 {[%clk 0:20:38]} 23. O-O {[%clk 0:32:21]} 23... Qe6
{[%clk 0:20:25]} 24. f4 {[%clk 0:21:32]} 24... exf3 {[%clk 0:20:36]} 25. Rxf3
{[%clk 0:21:13]} 25... Rxf3 {[%clk 0:19:33]} 26. Bxf3 {[%clk 0:21:37]} 26...
Qxe5 {[%clk 0:15:21]} 27. Qg6+ {[%clk 0:21:39]} 27... Qg7 {[%clk 0:15:37]} 28.
Qe8+ {[%clk 0:22:00]} 28... Kh7 {[%clk 0:15:35]} 29. Rf1 {[%clk 0:16:05]} 29...
Bb7 {[%clk 0:09:15]} 30. Qd7 {[%clk 0:16:27]} 30... Ba6 {[%clk 0:06:02]} 31.
Qxc6 {[%clk 0:16:48]} 31... Bxf1 {[%clk 0:06:22]} 32. Qxa8 {[%clk 0:17:13]}
32... Qa1 {[%clk 0:03:53]} 33. Bxd5 {[%clk 0:17:21]} 33... Bc4+ {[%clk 0:03:33]}
34. Kh2 {[%clk 0:17:46]} 34... Qe5+ {[%clk 0:03:50]} 35. Kg1 {[%clk 0:17:23]}
35... Bxd5 {[%clk 0:03:23]} 36. Qe8 {[%clk 0:16:36]} 36... Qg3+ {[%clk 0:03:35]}
37. Kf1 {[%clk 0:17:02]} 37... Bc4# {[%clk 0:03:59]} 0-1

[Variant "Standard"]
[Site "Europe Echecs"]

[Event "Sunway Sitges Chess Festival"]
[Date "2024.12.21"]
[White "Kumar, Sanjit S"]
[Black "Kong, Lingzhijie"]
[WhiteElo "2034"]
[BlackElo "1816"]
[Round "7.39"]
[Result "1-0"]
[TimeControl "40/5400+30:1800+30"]

1. d4 {[%clk 1:28:09]} 1... Nf6 {[%clk 1:28:44]} 2. c4 {[%clk 1:28:28]} 2... g6
{[%clk 1:28:50]} 3. Nc3 {[%clk 1:28:48]} 3... d5 {[%clk 1:28:30]} 4. Nf3 {[%clk
1:29:06]} 4... Bg7 {[%clk 1:28:11]} 5. Qb3 {[%clk 1:29:28]} 5... dxc4 {[%clk
1:28:26]} 6. Qxc4 {[%clk 1:29:52]} 6... O-O {[%clk 1:28:46]} 7. e4 {[%clk
1:30:20]} 7... Na6 {[%clk 1:28:10]} 8. Be2 {[%clk 1:26:34]} 8... c5 {[%clk
1:28:12]} 9. d5 {[%clk 1:24:41]} 9... e6 {[%clk 1:28:29]} 10. O-O {[%clk
1:23:29]} 10... exd5 {[%clk 1:27:45]} 11. exd5 {[%clk 1:23:43]} 11... Nb4 {[%clk
1:26:53]} 12. Rd1 {[%clk 1:14:59]} 12... Nc2 {[%clk 1:27:15]} 13. Rb1 {[%clk
1:15:13]} 13... Nd4 {[%clk 1:27:29]} 14. Nxd4 {[%clk 0:59:20]} 14... cxd4 {[%clk
1:27:41]} 15. Qxd4 {[%clk 0:59:10]} 15... Bf5 {[%clk 1:27:53]} 16. Bd3 {[%clk
0:57:37]} 16... Ng4 {[%clk 1:28:15]} 17. Qf4 {[%clk 0:45:24]} 17... Be5 {[%clk
1:27:45]} 18. Qf3 {[%clk 0:42:13]} 18... Bxh2+ {[%clk 1:27:30]} 19. Kf1 {[%clk
0:42:33]} 19... Be5 {[%clk 1:26:47]} 20. Bf4 {[%clk 0:39:52]} 20... Bxd3+ {[%clk
1:23:25]} 21. Rxd3 {[%clk 0:39:59]} 21... Qh4 {[%clk 1:20:55]} 22. Kg1 {[%clk
0:32:42]} 22... Nh2 {[%clk 1:19:05]} 23. Qg3 {[%clk 0:32:34]} 23... Qxf4 {[%clk
1:17:56]} 24. Qxf4 {[%clk 0:32:57]} 24... Bxf4 {[%clk 1:18:17]} 25. g3 {[%clk
0:33:24]} 25... Ng4 {[%clk 1:17:23]} 26. gxf4 {[%clk 0:33:41]} 26... Nf6 {[%clk
1:04:40]} 27. d6 {[%clk 0:31:40]} 27... Rad8 {[%clk 1:03:28]} 28. Rbd1 {[%clk
0:26:47]} 28... Rd7 {[%clk 1:02:24]} 29. Nb5 {[%clk 0:26:41]} 29... a6 {[%clk
1:01:52]} 30. Na3 {[%clk 0:26:36]} 30... b5 {[%clk 1:01:51]} 31. Rc1 {[%clk
0:27:14]} 31... b4 {[%clk 0:57:02]} 32. Nc4 {[%clk 0:27:37]} 32... Rc8 {[%clk
0:57:25]} 33. b3 {[%clk 0:28:03]} 33... Ne4 {[%clk 0:54:27]} 34. Re1 {[%clk
0:24:45]} 34... Nc5 {[%clk 0:51:10]} 35. Rd5 {[%clk 0:23:59]} 35... Rc6 {[%clk
0:50:42]} 36. Ne5 {[%clk 0:23:39]} 36... Rdxd6 {[%clk 0:50:57]} 37. Nxc6 {[%clk
0:24:03]} 37... Rxc6 {[%clk 0:50:46]} 38. Rc1 {[%clk 0:24:20]} 38... Nd3 {[%clk
0:48:36]} 39. Rxc6 {[%clk 0:24:34]} 39... Nxf4 {[%clk 0:49:04]} 40. Rd8+ {[%clk
0:54:56]} 40... Kg7 {[%clk 1:19:27]} 41. Rxa6 {[%clk 0:55:20]} 41... h5 {[%clk
1:19:47]} 42. Rd7 {[%clk 0:55:25]} 42... h4 {[%clk 1:20:13]} 43. Raa7 {[%clk
0:55:52]} 43... h3 {[%clk 1:20:18]} 44. Rxf7+ {[%clk 0:56:17]} 44... Kh6 {[%clk
1:20:42]} 45. Rxf4 {[%clk 0:56:42]} 1-0

[Variant "Standard"]
[Site "Europe Echecs"]

[Event "Sunway Sitges Chess Festival"]
[Date "2024.12.21"]
[White "Ghazaryan, Raffi"]
[Black "Vihaan Dumir"]
[WhiteElo "2097"]
[BlackElo "1799"]
[Round "7.40"]
[Result "1/2-1/2"]
[TimeControl "40/5400+30:1800+30"]

1. d4 {[%clk 1:30:58]} 1... d5 2. c4 {[%clk 1:30:59]} 2... e6 3. Nc3 {[%clk
1:31:10]} 3... h6 4. Nf3 {[%clk 1:30:44]} 4... Nf6 {[%clk 1:32:11]} 5. cxd5
{[%clk 1:29:00]} 5... exd5 {[%clk 1:32:38]} 6. Bf4 {[%clk 1:29:21]} 6... Bd6
{[%clk 1:32:21]} 7. Bxd6 {[%clk 1:27:27]} 7... Qxd6 {[%clk 1:32:46]} 8. Qc2
{[%clk 1:27:51]} 8... O-O {[%clk 1:31:11]} 9. e3 {[%clk 1:28:06]} 9... c6 {[%clk
1:31:31]} 10. Bd3 {[%clk 1:27:26]} 10... Re8 {[%clk 1:31:30]} 11. h3 {[%clk
1:25:04]} 11... Nbd7 {[%clk 1:27:23]} 12. O-O {[%clk 1:24:22]} 12... Qe7 {[%clk
1:27:47]} 13. Nd2 {[%clk 1:11:08]} 13... Nb6 {[%clk 1:20:23]} 14. Rfe1 {[%clk
1:07:24]} 14... Be6 {[%clk 1:17:34]} 15. Rab1 {[%clk 1:02:08]} 15... Qd7 {[%clk
1:11:57]} 16. Ne2 {[%clk 0:40:50]} 16... Qe7 {[%clk 1:05:58]} 17. Qc5 {[%clk
0:37:35]} 17... Qd7 {[%clk 1:00:31]} 18. Ng3 {[%clk 0:28:48]} 18... Nc8 {[%clk
0:58:44]} 19. Nf3 {[%clk 0:23:31]} 19... Qc7 {[%clk 0:52:45]} 20. Ne5 {[%clk
0:23:31]} 20... Nd7 {[%clk 0:53:09]} 21. Nxd7 {[%clk 0:23:14]} 21... Qxd7 {[%clk
0:53:25]} 22. Rbd1 {[%clk 0:19:27]} 22... Nd6 {[%clk 0:53:12]} 23. Bb1 {[%clk
0:15:41]} 23... g6 {[%clk 0:50:53]} 24. Qc1 {[%clk 0:14:44]} 24... Kg7 {[%clk
0:50:44]} 25. f3 {[%clk 0:12:08]} 25... f5 {[%clk 0:39:22]} 26. e4 {[%clk
0:06:45]} 26... fxe4 {[%clk 0:39:31]} 27. fxe4 {[%clk 0:07:07]} 27... dxe4
{[%clk 0:39:47]} 28. Nxe4 {[%clk 0:07:10]} 28... Nxe4 {[%clk 0:40:14]} 29. Rxe4
{[%clk 0:07:14]} 29... Bf5 {[%clk 0:37:06]} 30. Re5 {[%clk 0:06:31]} 30... Bxb1
{[%clk 0:35:40]} 31. Qxb1 {[%clk 0:06:08]} 31... Rad8 {[%clk 0:35:41]} 32. Qe4
{[%clk 0:05:13]} 32... Rxe5 {[%clk 0:31:28]} 33. Qxe5+ {[%clk 0:05:35]} 33...
Kh7 {[%clk 0:31:51]} 34. Re1 {[%clk 0:03:22]} 34... Rf8 {[%clk 0:28:38]} 35. Kh1
{[%clk 0:02:30]} 35... Rf7 {[%clk 0:28:01]} 36. Qc5 {[%clk 0:01:44]} 36... a6
{[%clk 0:25:46]} 37. a4 {[%clk 0:01:42]} 37... Qc7 {[%clk 0:20:23]} 38. Qc3
{[%clk 0:00:48]} 38... Re7 {[%clk 0:19:42]} 39. Rxe7+ {[%clk 0:00:37]} 39...
Qxe7 {[%clk 0:21:07]} 40. b4 {[%clk 0:30:37]} 40... h5 {[%clk 0:49:44]} 41. Qc4
{[%clk 0:22:58]} 41... h4 {[%clk 0:49:04]} 42. Qc3 {[%clk 0:20:54]} 1/2-1/2

[Variant "Standard"]
[Site "Europe Echecs"]

[Event "Sunway Sitges Chess Festival"]
[Date "2024.12.21"]
[White "Koridze, Lile"]
[Black "Travadon, Loic"]
[WhiteElo "2107"]
[BlackElo "2428"]
[Round "7.41"]
[Result "0-1"]
[TimeControl "40/5400+30:1800+30"]

1. d4 {[%clk 1:30:42]} 1... Nf6 {[%clk 1:30:49]} 2. c4 {[%clk 1:31:09]} 2... c5
{[%clk 1:30:43]} 3. d5 {[%clk 1:29:50]} 3... e6 {[%clk 1:31:03]} 4. Nc3 {[%clk
1:30:07]} 4... exd5 {[%clk 1:31:25]} 5. cxd5 {[%clk 1:30:33]} 5... g6 {[%clk
1:31:36]} 6. Nf3 {[%clk 1:26:35]} 6... d6 {[%clk 1:31:55]} 7. Bg5 {[%clk
1:26:19]} 7... Bg7 {[%clk 1:31:54]} 8. Nd2 {[%clk 1:25:33]} 8... O-O {[%clk
1:31:27]} 9. Nc4 {[%clk 1:19:23]} 9... Nbd7 {[%clk 1:31:49]} 10. e3 {[%clk
1:13:13]} 10... Nb6 {[%clk 1:32:11]} 11. Na3 {[%clk 1:12:46]} 11... h6 {[%clk
1:29:58]} 12. Bh4 {[%clk 1:07:19]} 12... g5 {[%clk 1:30:18]} 13. Bg3 {[%clk
1:07:45]} 13... Nbxd5 {[%clk 1:30:35]} 14. Nxd5 {[%clk 0:59:41]} 14... Nxd5
{[%clk 1:30:57]} 15. Nc4 {[%clk 0:59:24]} 15... Be6 {[%clk 1:31:02]} 16. Qd2
{[%clk 0:50:25]} 16... b5 {[%clk 1:29:19]} 17. Na3 {[%clk 0:29:38]} 17... a6
{[%clk 1:28:00]} 18. Be2 {[%clk 0:18:53]} 18... c4 {[%clk 1:28:07]} 19. Rc1
{[%clk 0:12:52]} 19... Qf6 {[%clk 1:27:05]} 20. b3 {[%clk 0:07:57]} 20... c3
{[%clk 1:26:15]} 21. Qd1 {[%clk 0:08:23]} 21... Nb4 {[%clk 1:24:23]} 22. Nc2
{[%clk 0:08:25]} 22... Nxc2+ {[%clk 1:24:21]} 23. Qxc2 {[%clk 0:07:10]} 23... d5
{[%clk 1:24:15]} 24. Bd3 {[%clk 0:04:01]} 24... Rac8 {[%clk 1:23:49]} 25. O-O
{[%clk 0:03:07]} 25... Rfe8 {[%clk 1:23:34]} 26. e4 {[%clk 0:01:51]} 26... dxe4
{[%clk 1:23:26]} 27. Bxe4 {[%clk 0:02:16]} 27... Rcd8 {[%clk 1:23:18]} 28. Rcd1
{[%clk 0:01:28]} 28... Rxd1 {[%clk 1:23:35]} 29. Rxd1 {[%clk 0:01:53]} 29... Rd8
{[%clk 1:23:43]} 30. Rd3 {[%clk 0:01:17]} 30... Rxd3 {[%clk 1:23:23]} 31. Bxd3
{[%clk 0:01:42]} 31... Qd4 {[%clk 1:23:11]} 32. Kf1 {[%clk 0:01:10]} 32... b4
{[%clk 1:22:24]} 33. f3 {[%clk 0:01:10]} 33... a5 {[%clk 1:22:45]} 34. Bf2
{[%clk 0:01:13]} 34... Qd6 {[%clk 1:23:07]} 35. h3 {[%clk 0:01:06]} 35... Be5
{[%clk 1:22:40]} 36. Qe2 {[%clk 0:01:05]} 36... a4 {[%clk 1:21:36]} 37. bxa4
{[%clk 0:01:03]} 37... Bxa2 {[%clk 1:21:54]} 38. a5 {[%clk 0:00:56]} 38... b3
{[%clk 1:22:06]} 39. a6 {[%clk 0:00:40]} 39... c2 {[%clk 1:22:07]} 40. Be3
{[%clk 0:30:39]} 40... Bd4 {[%clk 1:50:54]} 41. Bc1 {[%clk 0:26:23]} 41... Qh2
{[%clk 1:49:04]} 42. Ke1 {[%clk 0:23:01]} 42... Qg1+ {[%clk 1:47:55]} 43. Kd2
{[%clk 0:23:26]} 43... Qxc1+ {[%clk 1:48:04]} 44. Kxc1 {[%clk 0:23:51]} 44...
b2+ {[%clk 1:48:29]} 45. Kxc2 {[%clk 0:24:19]} 45... b1=Q+ {[%clk 1:48:52]} 46.
Kd2 {[%clk 0:24:44]} 46... Qb4+ {[%clk 1:48:52]} 47. Kd1 {[%clk 0:22:53]} 47...
Bb3+ {[%clk 1:48:40]} 48. Bc2 {[%clk 0:22:20]} 48... Qa4 {[%clk 1:48:52]} 49.
Bxb3 {[%clk 0:21:20]} 49... Qxb3+ {[%clk 1:48:59]} 50. Qc2 {[%clk 0:21:26]}
50... Qe3 {[%clk 1:47:10]} 51. Qe2 {[%clk 0:20:25]} 51... Qg1+ {[%clk 1:47:00]}
52. Kc2 {[%clk 0:20:43]} 52... Qa1 {[%clk 1:47:01]} 53. Qe4 {[%clk 0:18:45]}
53... Qc3+ {[%clk 1:46:29]} 54. Kd1 {[%clk 0:19:11]} 54... Kg7 {[%clk 1:46:25]}
55. Ke2 {[%clk 0:17:44]} 55... Qc4+ {[%clk 1:46:25]} 56. Qd3 {[%clk 0:17:38]}
56... Qa2+ {[%clk 1:46:32]} 57. Kd1 {[%clk 0:17:50]} 57... Qa1+ {[%clk 1:46:40]}
58. Ke2 {[%clk 0:18:15]} 58... Qg1 {[%clk 1:46:33]} 59. Qe4 {[%clk 0:17:43]}
59... Qf2+ {[%clk 1:45:12]} 60. Kd3 {[%clk 0:18:09]} 60... Bf6 {[%clk 1:44:24]}
61. Qe3 {[%clk 0:16:23]} 61... Qf1+ {[%clk 1:43:28]} 62. Qe2 {[%clk 0:16:45]}
62... Qc1 {[%clk 1:43:42]} 63. Qa2 {[%clk 0:15:39]} 63... Qc3+ {[%clk 1:43:53]}
64. Ke2 {[%clk 0:15:53]} 64... Bd4 {[%clk 1:44:10]} 65. Qd2 {[%clk 0:13:56]}
65... Qxd2+ {[%clk 1:44:24]} 66. Kxd2 {[%clk 0:14:17]} 66... Kf6 {[%clk
1:44:50]} 67. Kd3 {[%clk 0:14:17]} 67... Ke5 {[%clk 1:45:14]} 68. g3 {[%clk
0:14:33]} 68... Kd5 {[%clk 1:45:29]} 69. h4 {[%clk 0:14:37]} 69... gxh4 {[%clk
1:45:43]} 70. gxh4 {[%clk 0:15:03]} 70... h5 {[%clk 1:46:08]} 71. Kd2 {[%clk
0:14:15]} 71... Ba7 {[%clk 1:46:24]} 0-1

[Variant "Standard"]
[Site "Europe Echecs"]